bitfinex/quotes_BTCUSD_20241023
["timestamp","ask_amount","ask_price","bid_price","bid_amount"]
[1729696174559,0.150715,66351.0,66348.0,0.0974]
[1729696174813,0.301418,66353.0,66348.0,0.0974]
[1729696175029,0.04463188,66354.0,66348.0,0.0974]
[1729696175274,0.150709,66353.0,66348.0,0.0974]
[1729696175490,0.04463188,66354.0,66350.0,0.023]
[1729696175714,0.04463188,66353.0,66352.0,0.023]
[1729696175932,0.17479423,66356.0,66352.0,0.17350381]
[1729696175933,0.19533988,66354.0,66352.0,0.17350381]
[1729696176136,0.150709,66353.0,66352.0,0.17350381]
[1729696177287,0.150709,66353.0,66348.0,0.1772]
[1729696177541,0.150717,66350.0,66349.0,0.17350381]
[1729696177788,0.150715,66350.0,66349.0,0.17350381]
[1729696181617,0.32550623,66352.0,66349.0,0.17350381]
[1729696181828,0.17479423,66352.0,66349.0,0.17350381]
[1729696182036,0.150715,66351.0,66349.0,0.17350381]
[1729696182256,0.27009008,66356.0,66349.0,0.17350381]
[1729696182464,0.301416,66354.0,66349.0,0.17350381]
[1729696182682,0.150713,66351.0,66349.0,0.17350381]
[1729696182940,0.04461263,66358.0,66349.0,0.17350381]
[1729696182941,0.04626063,66361.0,66354.0,0.023]
[1729696183159,0.04626063,66361.0,66356.0,0.023]
[1729696183160,0.22712545,66361.0,66356.0,0.023]
[1729696183384,0.001648,66361.0,66360.0,0.173693]
[1729696183612,0.001648,66361.0,66360.0,0.32721025]
[1729696183821,0.001648,66361.0,66360.0,0.32419681]
[1729696184028,0.001648,66361.0,66360.0,0.17350381]
[1729696184244,0.001648,66361.0,66360.0,0.28860411]
[1729696184457,0.001648,66361.0,66360.0,0.43929711]
[1729696184870,0.001648,66361.0,66360.0,0.28860411]
[1729696185554,0.001648,66361.0,66348.0,0.1759]
[1729696185767,0.150705,66355.0,66354.0,0.22547745]
[1729696185974,0.150711,66352.0,66349.0,0.15050381]
[1729696186214,0.150711,66352.0,66350.0,0.00471257]
[1729696186447,0.150711,66352.0,66348.0,0.1759]
[1729696186448,0.150711,66352.0,66351.0,0.15050381]
[1729696186666,0.150711,66352.0,66345.0,0.30145]
[1729696186667,0.301427,66351.0,66342.0,0.1759]
[1729696186938,0.34597563,66365.0,66346.0,0.22547745]
[1729696186939,0.150716,66350.0,66346.0,0.22547745]
[1729696187186,0.452139,66352.0,66347.0,0.15050381]
[1729696187424,0.301413,66354.0,66347.0,0.15050381]
[1729696187963,0.17479423,66358.0,66348.0,0.023]
[1729696188221,0.150708,66354.0,66350.0,0.023]
[1729696188486,0.301404,66356.0,66350.0,0.17350381]
[1729696188749,0.301414,66354.0,66350.0,0.17350381]
[1729696188964,0.17479423,66358.0,66350.0,0.17350381]
[1729696189205,0.150712,66352.0,66350.0,0.17350381]
[1729696189461,0.17644223,66361.0,66352.0,0.17371]
[1729696189706,0.150703,66356.0,66353.0,0.15050381]
[1729696189946,0.150696,66359.0,66354.0,0.023]
[1729696190180,0.001648,66361.0,66356.0,0.023]
[1729696190431,0.001648,66361.0,66358.0,0.023]
[1729696190679,0.150693,66360.0,66358.0,0.17350381]
[1729696190913,0.001648,66361.0,66358.0,0.17350381]
[1729696191152,0.303032,66361.0,66358.0,0.17350381]
[1729696191398,0.150695,66359.0,66358.0,0.17350381]
[1729696191634,0.303032,66361.0,66358.0,0.17350381]
[1729696191635,0.001648,66361.0,66358.0,0.17350381]
[1729696192128,0.150694,66360.0,66358.0,0.17350381]
[1729696192382,0.30303,66361.0,66358.0,0.17350381]
[1729696192383,0.150695,66359.0,66358.0,0.17350381]
[1729696192640,0.001648,66361.0,66358.0,0.17350381]
[1729696192908,0.150695,66359.0,66358.0,0.17350381]
[1729696193441,0.47578308,66359.0,66348.0,0.0942]
[1729696193687,0.47578308,66359.0,66345.0,0.000824]
[1729696193688,0.0771,66358.0,66349.0,0.15050381]
[1729696193903,0.150715,66350.0,66349.0,0.15050381]
[1729696194850,0.150715,66350.0,66349.0,0.023]
[1729696195113,0.150715,66350.0,66345.0,0.000824]
[1729696195114,0.150724,66346.0,66345.0,0.000824]
[1729696195352,0.229224,66346.0,66345.0,0.000824]
[1729696195597,0.44858806,66346.0,66345.0,0.000824]
[1729696195857,0.44858771,66346.0,66345.0,0.000824]
[1729696196103,0.59909155,66346.0,66345.0,0.000824]
[1729696196355,0.62136842,66346.0,66345.0,0.000824]
[1729696196842,1.08801595,66346.0,66345.0,0.000824]
[1729696197095,0.32555023,66332.0,66331.0,0.22624482]
[1729696197806,0.32555023,66332.0,66331.0,0.00076737]
[1729696203118,0.17479423,66332.0,66331.0,0.00076737]
[1729696203341,0.32555023,66332.0,66331.0,0.00076737]
[1729696203762,0.150756,66332.0,66331.0,0.00076737]
[1729696204008,0.04458498,66335.0,66331.0,0.00076737]
[1729696204220,0.04458498,66339.0,66332.0,0.17350381]
[1729696204433,0.11146247,66344.0,66334.0,0.023]
[1729696204434,0.04458498,66344.0,66334.0,0.023]
[1729696204643,0.22547745,66345.0,66340.0,0.023]
[1729696204852,0.22547745,66345.0,66343.0,0.023]
[1729696205053,0.37620445,66345.0,66344.0,0.17350381]
[1729696205282,0.150727,66345.0,66344.0,0.17350381]
[1729696205956,0.150725,66346.0,66345.0,0.023]
[1729696206157,0.150725,66346.0,66345.0,0.17350381]
[1729696206388,0.150725,66346.0,66336.0,0.150746]
[1729696206389,0.0819,66345.0,66333.0,0.22547745]
[1729696206624,0.17479423,66337.0,66334.0,0.17350381]
[1729696206865,0.150748,66336.0,66334.0,0.17350381]
[1729696207101,0.150747,66336.0,66334.0,0.17350381]
[1729696207317,0.150747,66336.0,66331.0,0.00076737]
[1729696207318,0.301495,66336.0,66331.0,0.00076737]
[1729696207528,0.150756,66332.0,66331.0,0.00076737]
[1729696209461,0.301499,66335.0,66331.0,0.00076737]
[1729696209689,0.45225,66335.0,66331.0,0.00076737]
[1729696209895,0.150753,66334.0,66331.0,0.00076737]
[1729696210103,0.27008274,66338.0,66331.0,0.00076737]
[1729696210309,0.150754,66333.0,66331.0,0.00076737]
[1729696210767,0.301502,66335.0,66331.0,0.00076737]
[1729696211042,0.301487,66338.0,66331.0,0.00076737]
[1729696211275,0.3683881,66341.0,66333.0,0.023]
[1729696211276,0.301473,66341.0,66333.0,0.023]
[1729696211535,0.150751,66335.0,66334.0,0.17350381]
[1729696211982,0.150747,66336.0,66335.0,0.023]
[1729696212417,0.150739,66340.0,66335.0,0.17350381]
[1729696212643,0.08922014,66344.0,66333.0,0.242454]
[1729696212644,0.04460529,66346.0,66341.0,0.150735]
[1729696212860,0.11152517,66351.0,66341.0,0.150735]
[1729696212861,0.04460529,66353.0,66348.0,0.173719]
[1729696213088,0.22547745,66355.0,66350.0,0.023]
[1729696213313,0.37618245,66355.0,66351.0,0.17350381]
[1729696213540,0.150708,66354.0,66351.0,0.17350381]
[1729696213756,0.52688945,66355.0,66351.0,0.17350381]
[1729696213984,0.152359,66352.0,66351.0,0.17350381]
[1729696214200,0.001648,66352.0,66351.0,0.17350381]
[1729696214855,0.152359,66352.0,66351.0,0.17350381]
[1729696215071,0.001648,66352.0,66351.0,0.17350381]
[1729696215297,0.001648,66352.0,66334.0,0.005]
[1729696215298,0.077848,66352.0,66334.0,0.005]
[1729696215545,0.077848,66352.0,66345.0,0.023]
[1729696215754,0.150724,66346.0,66345.0,0.023]
[1729696215970,0.150737,66341.0,66339.0,0.023]
[1729696216233,0.301436,66349.0,66341.0,0.023]
[1729696216234,0.150727,66345.0,66341.0,0.023]
[1729696216463,0.150732,66343.0,66342.0,0.17350381]
[1729696217573,0.452181,66345.0,66343.0,0.023]
[1729696217793,0.452181,66345.0,66344.0,0.17350381]
[1729696218008,0.150727,66345.0,66344.0,0.17350381]
[1729696218520,0.001648,66352.0,66347.0,0.023]
[1729696218713,0.22547745,66351.0,66348.0,0.17651786]
[1729696218948,0.001648,66352.0,66348.0,0.17350381]
[1729696219159,0.001648,66352.0,66349.0,0.150717]
[1729696219375,0.001648,66352.0,66351.0,0.023]
[1729696219601,0.001648,66352.0,66351.0,0.17350381]
[1729696220473,0.152359,66352.0,66351.0,0.17350381]
[1729696221148,0.001648,66352.0,66351.0,0.17350381]
[1729696223110,0.152359,66352.0,66351.0,0.17350381]
[1729696223746,0.32715323,66352.0,66351.0,0.17350381]
[1729696223982,0.32715323,66352.0,66351.0,0.023]
[1729696224200,0.150722,66348.0,66345.0,0.023]
[1729696224415,0.32551423,66348.0,66347.0,0.023]
[1729696224629,0.32551423,66348.0,66347.0,0.17350381]
[1729696224871,0.26779725,66348.0,66338.0,0.22547745]
[1729696225092,0.001648,66352.0,66339.0,0.15050381]
[1729696225093,0.17479423,66341.0,66339.0,0.15050381]
[1729696225339,0.301465,66343.0,66339.0,0.15050381]
[1729696225557,0.150736,66341.0,66339.0,0.15050381]
[1729696225772,0.301459,66344.0,66339.0,0.15050381]
[1729696225988,0.150738,66341.0,66339.0,0.15050381]
[1729696226195,0.150738,66341.0,66340.0,0.023]
[1729696226408,0.301464,66343.0,66340.0,0.17350381]
[1729696226617,0.150731,66343.0,66342.0,0.023]
[1729696227522,0.47625023,66345.0,66332.0,0.30151]
[1729696227523,0.17644023,66345.0,66332.0,0.150755]
[1729696227758,0.150752,66334.0,66333.0,0.15050381]
[1729696228621,0.150756,66332.0,66324.0,0.150772]
[1729696228837,0.150752,66334.0,66331.0,0.15127118]
[1729696229063,0.17479423,66336.0,66333.0,0.023]
[1729696229272,0.150752,66334.0,66333.0,0.023]
[1729696229688,0.17479423,66336.0,66333.0,0.023]
[1729696229897,0.15075,66335.0,66333.0,0.023]
[1729696230527,0.17479423,66336.0,66333.0,0.023]
[1729696230939,0.32554323,66336.0,66333.0,0.023]
[1729696231148,0.15075,66335.0,66333.0,0.023]
[1729696231665,0.04452793,66342.0,66335.0,0.023]
[1729696231757,0.150743,66338.0,66335.0,0.023]
[1729696231964,0.150743,66338.0,66337.0,0.023]
[1729696232386,0.150739,66340.0,66337.0,0.023]
[1729696232599,0.17479423,66341.0,66337.0,0.023]
[1729696233242,0.47626923,66341.0,66337.0,0.023]
[1729696233449,0.17479423,66341.0,66337.0,0.17350381]
[1729696233656,0.32553123,66341.0,66337.0,0.17350381]
[1729696234073,0.17479423,66341.0,66337.0,0.17350381]
[1729696234284,0.303104,66345.0,66339.0,0.023]
[1729696234285,0.22095302,66345.0,66339.0,0.023]
[1729696234506,0.22095302,66345.0,66341.0,0.023]
[1729696234507,0.150729,66344.0,66341.0,0.023]
[1729696234738,0.301459,66344.0,66341.0,0.023]
[1729696234943,0.150733,66343.0,66341.0,0.023]
[1729696235139,0.150734,66342.0,66341.0,0.023]
[1729696235385,0.17644023,66345.0,66341.0,0.023]
[1729696235591,0.301464,66343.0,66341.0,0.023]
[1729696235799,0.17644023,66345.0,66343.0,0.023]
[1729696236029,0.17644023,66345.0,66343.0,0.17350381]
[1729696236030,0.32716823,66345.0,66343.0,0.17350381]
[1729696236244,0.150729,66344.0,66343.0,0.17350381]
[1729696238447,0.17644023,66345.0,66337.0,0.023]
[1729696238448,0.150743,66338.0,66337.0,0.023]
[1729696238662,0.150756,66332.0,66328.0,0.0902]
[1729696238872,0.150756,66332.0,66331.0,0.15127118]
[1729696239987,0.150756,66332.0,66331.0,0.00076737]
[1729696240241,0.27376042,66332.0,66331.0,0.00076737]
[1729696240720,0.6304729,66332.0,66331.0,0.00076737]
[1729696241368,0.74962165,66332.0,66331.0,0.00076737]
[1729696241586,0.60536746,66322.0,66321.0,0.0173805]
[1729696241826,0.37689953,66322.0,66321.0,0.0173805]
[1729696242025,0.49495701,66322.0,66321.0,0.0173805]
[1729696242666,0.60625083,66322.0,66321.0,0.0173805]
[1729696242878,0.60625121,66322.0,66321.0,0.0173805]
[1729696243098,0.60125121,66322.0,66321.0,0.0073805]
[1729696243319,0.39232932,66322.0,66321.0,0.0073805]
[1729696243769,0.5558197,66322.0,66321.0,0.0073805]
[1729696243985,0.391543,66322.0,66321.0,0.0073805]
[1729696244206,0.55581763,66322.0,66321.0,0.0073805]
[1729696244460,0.64479471,66322.0,66321.0,0.0073805]
[1729696244674,0.64477192,66322.0,66321.0,0.0073805]
[1729696245204,0.39782135,66322.0,66321.0,0.0073805]
[1729696245418,0.33106763,66322.0,66321.0,0.0073805]
[1729696246298,0.37556753,66322.0,66321.0,0.0073805]
[1729696247164,0.33106763,66322.0,66321.0,0.0073805]
[1729696249308,0.1562734,66322.0,66321.0,0.0073805]
[1729696249534,0.33106763,66322.0,66321.0,0.0073805]
[1729696249755,0.53208818,66322.0,66321.0,0.0073805]
[1729696250204,0.60968818,66322.0,66321.0,0.0073805]
[1729696250419,0.67835632,66322.0,66321.0,0.0073805]
[1729696250646,0.97763733,66322.0,66321.0,0.0073805]
[1729696250879,0.89074764,66322.0,66321.0,0.0073805]
[1729696251089,1.2647289,66322.0,66321.0,0.0073805]
[1729696251336,1.04125145,66322.0,66321.0,0.0073805]
[1729696251553,0.43058923,66315.0,66309.0,0.22547745]
[1729696251775,0.51807653,66315.0,66309.0,0.22547745]
[1729696251992,0.52343612,66315.0,66309.0,0.22547745]
[1729696252240,0.52543612,66315.0,66309.0,0.22547745]
[1729696252460,0.265799,66313.0,66308.0,0.000853]
[1729696253093,0.27115859,66313.0,66308.0,0.000853]
[1729696253307,0.41561948,66313.0,66308.0,0.000853]
[1729696254356,0.73722329,66313.0,66308.0,0.000853]
[1729696254779,0.73522329,66313.0,66308.0,0.000853]
[1729696254984,0.73722329,66313.0,66308.0,0.000853]
[1729696255222,0.73522329,66313.0,66308.0,0.000853]
[1729696255640,0.58471948,66313.0,66308.0,0.000853]
[1729696255858,0.33625859,66313.0,66308.0,0.000853]
[1729696256092,0.51105282,66313.0,66308.0,0.000853]
[1729696258381,0.43595282,66313.0,66308.0,0.000853]
[1729696261782,0.44595282,66313.0,66308.0,0.000853]
[1729696262002,0.44795282,66313.0,66308.0,0.000853]
[1729696262208,0.33060323,66309.0,66308.0,0.000853]
[1729696262416,0.3359043,66309.0,66308.0,0.000853]
[1729696263287,0.58849853,66309.0,66308.0,0.000853]
[1729696263493,0.4157043,66309.0,66308.0,0.000853]
[1729696264162,0.56420811,66309.0,66308.0,0.000853]
[1729696264378,0.56420811,66309.0,66300.0,0.00014]
[1729696264379,0.105,66301.0,66300.0,0.00014]
[1729696264605,0.61541546,66301.0,66300.0,0.00014]
[1729696264827,0.62069955,66301.0,66300.0,0.00014]
[1729696265045,0.62069955,66301.0,66291.0,0.000853]
[1729696265046,0.005,66292.0,66291.0,0.000853]
[1729696265286,0.33064123,66292.0,66291.0,0.000853]
[1729696265490,0.33589664,66292.0,66291.0,0.000853]
[1729696266333,0.52069087,66292.0,66291.0,0.000853]
[1729696266579,0.34589664,66292.0,66291.0,0.000853]
[1729696266789,0.37212296,66292.0,66291.0,0.000853]
[1729696268113,0.37212296,66292.0,66280.0,0.22558435]
[1729696268114,0.50545346,66284.0,66280.0,0.22558435]
[1729696268340,0.150865,66284.0,66280.0,0.22558435]
[1729696268551,0.32565923,66284.0,66280.0,0.22558435]
[1729696268795,0.33091464,66284.0,66280.0,0.22558435]
[1729696269000,0.33091464,66284.0,66280.0,0.0001069]
[1729696269420,0.51070887,66284.0,66280.0,0.0001069]
[1729696269848,0.33591464,66284.0,66280.0,0.0001069]
[1729696270312,0.51070887,66284.0,66280.0,0.0001069]
[1729696270544,0.15612041,66284.0,66280.0,0.0001069]
[1729696270751,0.33091464,66284.0,66280.0,0.0001069]
[1729696271400,0.4258501,66284.0,66280.0,0.0001069]
[1729696272451,0.33091464,66284.0,66280.0,0.0001069]
[1729696273553,0.150872,66281.0,66280.0,0.0001069]
[1729696273968,0.33075259,66281.0,66280.0,0.0001069]
[1729696274616,0.41315259,66281.0,66280.0,0.0001069]
[1729696274825,0.33075259,66281.0,66280.0,0.0001069]
[1729696275038,0.45434825,66281.0,66280.0,0.0001069]
[1729696275264,0.33075259,66281.0,66280.0,0.0001069]
[1729696276181,0.15089,66274.0,66273.0,0.023]
[1729696276672,0.00507627,66274.0,66273.0,0.023]
[1729696277121,0.30175,66280.0,66273.0,0.17350381]
[1729696277345,0.17479423,66281.0,66274.0,0.15050381]
[1729696277550,0.30175,66280.0,66275.0,0.023]
[1729696277809,0.150878,66279.0,66275.0,0.023]
[1729696278000,0.22547745,66284.0,66275.0,0.023]
[1729696278231,0.17479423,66285.0,66276.0,0.15050381]
[1729696278461,0.22547745,66291.0,66277.0,0.023]
[1729696278668,0.150871,66282.0,66279.0,0.023]
[1729696278872,0.17479423,66286.0,66281.0,0.023]
[1729696279103,0.15087,66282.0,66281.0,0.023]
[1729696279308,0.301727,66285.0,66281.0,0.023]
[1729696279309,0.150865,66285.0,66281.0,0.023]
[1729696279539,0.15087,66282.0,66281.0,0.023]
[1729696280001,0.150872,66281.0,66280.0,0.000824]
[1729696283114,0.150859,66287.0,66281.0,0.173871]
[1729696283239,0.02361061,66289.0,66281.0,0.023]
[1729696283450,0.02361061,66289.0,66288.0,0.173856]
[1729696283662,0.22547745,66298.0,66295.0,0.023]
[1729696284112,0.17479423,66306.0,66289.0,0.173853]
[1729696284113,0.150839,66296.0,66289.0,0.173853]
[1729696284325,0.00508455,66297.0,66293.0,0.023]
[1729696284533,0.150843,66294.0,66293.0,0.023]
[1729696284752,0.17479423,66297.0,66284.0,0.023]
[1729696284958,0.00508455,66294.0,66290.0,0.22547745]
[1729696285159,0.150837,66297.0,66291.0,0.17350381]
[1729696285360,0.17479423,66301.0,66291.0,0.17350381]
[1729696285361,0.47644923,66301.0,66291.0,0.17350381]
[1729696285565,0.00508455,66296.0,66291.0,0.17350381]
[1729696285770,0.150838,66297.0,66291.0,0.17350381]
[1729696285987,0.150819,66305.0,66298.0,0.023]
[1729696286209,0.37629145,66307.0,66301.0,0.173826]
[1729696286431,0.37629145,66307.0,66303.0,0.173822]
[1729696286432,0.00508455,66304.0,66303.0,0.173822]
[1729696286676,0.001648,66313.0,66303.0,0.173822]
[1729696286677,0.001648,66313.0,66304.0,0.023]
[1729696286946,0.001648,66313.0,66307.0,0.023]
[1729696287191,0.001648,66313.0,66311.0,0.023]
[1729696287429,0.001648,66313.0,66312.0,0.17350381]
[1729696287672,0.001648,66313.0,66312.0,0.49910004]
[1729696287916,0.001648,66313.0,66312.0,0.32430581]
[1729696288150,0.001648,66313.0,66312.0,0.49910004]
[1729696288384,0.001648,66313.0,66312.0,0.64010137]
[1729696289072,0.001648,66313.0,66312.0,0.32430581]
[1729696289724,0.001648,66313.0,66312.0,0.50410004]
[1729696289948,0.001648,66313.0,66312.0,0.32930581]
[1729696290596,0.001646,66322.0,66321.0,0.005]
[1729696290868,0.001646,66322.0,66321.0,0.68487904]
[1729696291087,0.001646,66322.0,66321.0,0.35430381]
[1729696291305,0.001646,66322.0,66321.0,0.27320381]
[1729696291517,0.00683308,66322.0,66321.0,0.27320381]
[1729696292155,0.001646,66322.0,66321.0,0.27320381]
[1729696292565,0.001646,66322.0,66321.0,0.42398481]
[1729696293004,0.001646,66322.0,66321.0,0.74802202]
[1729696293925,0.001646,66322.0,66321.0,0.75002202]
[1729696294357,0.001646,66322.0,66321.0,0.83432202]
[1729696294563,0.001646,66322.0,66321.0,0.83632202]
[1729696295001,0.001646,66322.0,66321.0,0.93632202]
[1729696295621,0.001646,66322.0,66321.0,0.9423739]
[1729696296298,0.001646,66322.0,66321.0,0.93432202]
[1729696296729,0.001646,66322.0,66321.0,0.75952779]
[1729696297611,0.001646,66322.0,66321.0,0.88952779]
[1729696297823,0.001646,66322.0,66321.0,0.75952779]
[1729696299968,0.001646,66322.0,66321.0,0.93432202]
[1729696300181,0.001646,66322.0,66321.0,0.93632202]
[1729696300807,0.001646,66322.0,66321.0,0.76152779]
[1729696301248,0.001646,66322.0,66321.0,0.75952779]
[1729696303524,0.001646,66322.0,66321.0,0.74952779]
[1729696303727,0.001646,66322.0,66321.0,0.75952779]
[1729696305372,0.001646,66322.0,66321.0,0.39474679]
[1729696305581,0.001646,66322.0,66321.0,0.40628481]
[1729696305809,0.001646,66322.0,66321.0,0.15050381]
[1729696306014,0.001646,66322.0,66321.0,0.30128481]
[1729696306638,0.001646,66322.0,66321.0,0.17350381]
[1729696307560,0.00664259,66322.0,66321.0,0.17350381]
[1729696307771,0.001646,66322.0,66321.0,0.17350381]
[1729696307985,0.00664259,66322.0,66321.0,0.17350381]
[1729696308197,0.001646,66322.0,66317.0,0.023]
[1729696308410,0.150783,66321.0,66319.0,0.023]
[1729696308624,0.150783,66321.0,66320.0,0.15050381]
[1729696308897,0.001646,66322.0,66320.0,0.15050381]
[1729696309133,0.152425,66322.0,66321.0,0.023]
[1729696309371,0.001646,66322.0,66321.0,0.023]
[1729696309598,0.152425,66322.0,66321.0,0.023]
[1729696310065,0.22882175,66322.0,66313.0,0.000824]
[1729696310305,0.001646,66322.0,66318.0,0.22547745]
[1729696310526,0.150797,66314.0,66313.0,0.000824]
[1729696311014,0.150789,66318.0,66313.0,0.000824]
[1729696311251,0.150792,66317.0,66313.0,0.000824]
[1729696311502,0.150796,66315.0,66313.0,0.000824]
[1729696311948,0.150797,66314.0,66313.0,0.000824]
[1729696312159,0.24367242,66314.0,66313.0,0.000824]
[1729696312374,0.155797,66314.0,66313.0,0.000824]
[1729696312589,0.329397,66314.0,66313.0,0.000824]
[1729696312825,0.150827,66301.0,66300.0,0.22547745]
[1729696313090,0.32562123,66301.0,66300.0,0.22547745]
[1729696313324,0.17479423,66301.0,66286.0,0.301719]
[1729696313555,0.150859,66288.0,66283.0,0.22547745]
[1729696313766,0.17479423,66286.0,66283.0,0.22547745]
[1729696313999,0.17479423,66293.0,66283.0,0.22547745]
[1729696314231,0.17479423,66293.0,66279.0,0.301753]
[1729696314232,0.3017,66291.0,66281.0,0.301741]
[1729696314464,0.150855,66289.0,66282.0,0.150869]
[1729696314693,0.150859,66287.0,66280.0,0.000824]
[1729696314900,0.17479423,66289.0,66280.0,0.000824]
[1729696315108,0.17479423,66289.0,66280.0,0.023824]
[1729696315339,0.17479423,66289.0,66282.0,0.023]
[1729696315545,0.150857,66288.0,66284.0,0.023]
[1729696315751,0.17479423,66289.0,66284.0,0.17350381]
[1729696316172,0.150858,66288.0,66284.0,0.17432781]
[1729696316378,0.17479423,66289.0,66284.0,0.17432781]
[1729696316733,0.150857,66288.0,66284.0,0.17432781]
[1729696317704,0.17479423,66289.0,66284.0,0.17432781]
[1729696317876,0.150857,66288.0,66284.0,0.17432781]
[1729696318082,0.17479423,66289.0,66284.0,0.17432781]
[1729696318279,0.150858,66288.0,66284.0,0.17432781]
[1729696318482,0.17479423,66289.0,66284.0,0.17432781]
[1729696318710,0.00779927,66287.0,66285.0,0.150863]
[1729696319053,0.00779927,66286.0,66284.0,0.32519281]
[1729696319265,0.00779927,66286.0,66285.0,0.17350381]
[1729696319433,0.301633,66306.0,66299.0,0.023]
[1729696319640,0.301645,66304.0,66299.0,0.023]
[1729696319858,0.301645,66304.0,66294.0,0.150842]
[1729696319859,0.301645,66304.0,66294.0,0.301686]
[1729696320068,0.40027168,66305.0,66295.0,0.17350381]
[1729696320069,0.150828,66301.0,66295.0,0.17350381]
[1729696320269,0.150827,66301.0,66295.0,0.17350381]
[1729696320471,0.17479423,66305.0,66295.0,0.17350381]
[1729696320700,0.17479423,66305.0,66284.0,0.000824]
[1729696320701,0.17479423,66297.0,66284.0,0.000824]
[1729696320896,0.17479423,66297.0,66291.0,0.023]
[1729696321102,0.301677,66296.0,66291.0,0.023]
[1729696321304,0.301677,66296.0,66286.0,0.023]
[1729696321305,0.150846,66293.0,66286.0,0.023]
[1729696321520,0.47648723,66293.0,66288.0,0.023]
[1729696321722,0.150851,66291.0,66289.0,0.15050381]
[1729696321927,0.301695,66292.0,66284.0,0.000824]
[1729696322127,0.301695,66292.0,66286.0,0.023]
[1729696322128,0.17479423,66289.0,66286.0,0.023]
[1729696322331,0.17479423,66289.0,66286.0,0.17350381]
[1729696322332,0.150859,66287.0,66286.0,0.17350381]
[1729696322890,0.150857,66288.0,66286.0,0.17350381]
[1729696323519,0.47650423,66289.0,66286.0,0.17350381]
[1729696323902,0.150859,66287.0,66286.0,0.17350381]
[1729696324325,0.17479423,66289.0,66284.0,0.000824]
[1729696324554,0.150859,66287.0,66286.0,0.023]
[1729696325039,0.150863,66285.0,66284.0,0.000824]
[1729696330817,0.227363,66285.0,66284.0,0.000824]
[1729696339478,0.150863,66285.0,66284.0,0.000824]
[1729696345123,0.150863,66285.0,66284.0,0.00076043]
[1729696346715,0.27394372,66285.0,66284.0,0.00076043]
[1729696346938,0.150863,66285.0,66284.0,0.00076043]
[1729696352142,0.15078293,66285.0,66284.0,0.00076043]
[1729696353196,0.17439552,66285.0,66284.0,0.00076043]
[1729696353836,0.150872,66281.0,66280.0,0.000824]
[1729696354043,0.32566623,66281.0,66280.0,0.000824]
[1729696354664,0.150872,66281.0,66280.0,0.000824]
[1729696354867,0.32566623,66281.0,66280.0,0.000824]
[1729696355910,0.37004251,66281.0,66280.0,0.000824]
[1729696356135,0.32566623,66281.0,66280.0,0.000824]
[1729696356564,0.39182499,66281.0,66280.0,0.000824]
[1729696356774,0.32566623,66281.0,66280.0,0.000824]
[1729696356976,0.48960197,66281.0,66280.0,0.000824]
[1729696357182,0.39228342,66281.0,66280.0,0.000824]
[1729696357386,0.48975154,66281.0,66280.0,0.000824]
[1729696358002,0.60001614,66281.0,66280.0,0.000824]
[1729696358413,0.48975154,66281.0,66280.0,0.000824]
[1729696358872,0.64025535,66281.0,66280.0,0.000824]
[1729696359133,0.81504958,66281.0,66280.0,0.000824]
[1729696359326,0.71098523,66281.0,66280.0,0.000824]
[1729696360007,0.48975154,66281.0,66280.0,0.000824]
[1729696360408,0.53620592,66281.0,66280.0,0.000824]
[1729696360611,0.71100015,66281.0,66280.0,0.000824]
[1729696360823,0.38331859,66281.0,66280.0,0.000824]
[1729696361041,0.83990705,66281.0,66280.0,0.000824]
[1729696361260,0.84905568,66281.0,66280.0,0.000824]
[1729696361476,0.99791289,66281.0,66280.0,0.000824]
[1729696361924,0.99991289,66281.0,66280.0,0.000824]
[1729696362418,0.150881,66277.0,66276.0,0.000824]
[1729696362609,0.82371492,66277.0,66276.0,0.000824]
[1729696362892,0.32569623,66268.0,66267.0,0.22547745]
[1729696363086,0.48978154,66268.0,66267.0,0.22547745]
[1729696363366,0.150918,66261.0,66260.0,0.24847745]
[1729696363634,0.32571223,66261.0,66260.0,0.39898126]
[1729696363901,0.33686086,66261.0,66260.0,0.17350381]
[1729696364164,0.38136685,66261.0,66260.0,0.17350381]
[1729696364367,0.31298463,66261.0,66256.0,0.023]
[1729696364573,0.17479423,66258.0,66257.0,0.15050381]
[1729696364783,0.17479423,66258.0,66257.0,0.17350381]
[1729696364990,0.01114863,66260.0,66258.0,0.023]
[1729696365203,0.32571723,66259.0,66258.0,0.17350381]
[1729696366215,0.33685217,66259.0,66258.0,0.17350381]
[1729696366460,0.01113494,66259.0,66258.0,0.17350381]
[1729696366672,0.18592917,66259.0,66258.0,0.17350381]
[1729696366877,0.17479423,66259.0,66258.0,0.17350381]
[1729696367084,0.18592917,66259.0,66258.0,0.17350381]
[1729696367296,0.32571623,66259.0,66258.0,0.17350381]
[1729696367505,0.17479423,66259.0,66258.0,0.17350381]
[1729696367712,0.32571623,66259.0,66258.0,0.17350381]
[1729696368540,0.150922,66259.0,66258.0,0.17350381]
[1729696368746,0.32571623,66259.0,66258.0,0.17350381]
[1729696369988,0.17479423,66259.0,66258.0,0.17350381]
[1729696370438,0.301817,66266.0,66259.0,0.0791]
[1729696370439,0.04450599,66265.0,66259.0,0.0791]
[1729696370648,0.33674242,66270.0,66265.0,0.023]
[1729696370649,0.37637845,66269.0,66265.0,0.023]
[1729696370864,0.32569823,66268.0,66267.0,0.023]
[1729696371077,0.32569823,66268.0,66259.0,0.1776]
[1729696371078,0.2712173,66268.0,66259.0,0.1776]
[1729696371297,0.17479423,66261.0,66260.0,0.17350381]
[1729696371508,0.301814,66266.0,66260.0,0.17350381]
[1729696371509,0.17479423,66262.0,66260.0,0.17350381]
[1729696371720,0.150918,66262.0,66260.0,0.17350381]
[1729696371929,0.150918,66261.0,66260.0,0.17350381]
[1729696372138,0.150917,66262.0,66260.0,0.17350381]
[1729696372350,0.47660323,66268.0,66260.0,0.17350381]
[1729696372590,0.301818,66266.0,66260.0,0.17350381]
[1729696373014,0.26998344,66269.0,66260.0,0.17350381]
[1729696373015,0.04450599,66269.0,66262.0,0.023]
[1729696373249,0.04450599,66269.0,66266.0,0.150905]
[1729696373464,0.0445133,66276.0,66272.0,0.150892]
[1729696373722,0.26999075,66277.0,66273.0,0.17350381]